Cogmind - Beta 10.2 @@@ ROGUE MODE // 2021.05.09 @ 03:29:58 Player: Peter Result: Destroyed by G-34 Mercenary with Small Laser Performance ------------- Evolutions (0) 0 Regions Visited (1) 200 Robots Destroyed (7) 35 Value Destroyed (170) 170 Prototype IDs (0) 0 Alien Tech Used (0) 0 Bonus (0) 0 TOTAL SCORE: 405 Bonus ------- None Cogmind --------- Core Integrity 0/250 Matter 300/300 Energy 100/100 System Corruption 1% Temperature Cool (6) Movement Core (150) Ox2 Location -10/Materials Parts ------- > --- POWER (1) -------- (None) > --- PROPULSION (2) --- (None) > --- UTILITY (2) ------ Medium Storage Unit Transport Network Coupler > --- WEAPON (2) ------- (None) > --- INVENTORY (8) ---- Light Treads Aluminum Leg Peak State ------------ > --- POWER ------------ Light Ion Engine > --- PROPULSION ------- Aluminum Leg Aluminum Leg > --- UTILITY ---------- Medium Storage Unit Transport Network Coupler > --- WEAPON ----------- Small Laser Light Assault Rifle > --- INVENTORY -------- Light Treads Aluminum Leg [Rating: 7] Favorites ----------- Power Light Ion Engine Engine Light Ion Engine Propulsion Aluminum Leg Leg Aluminum Leg Wheel Wheel Utility Transport Network Coupler Storage Medium Storage Unit Processor Transport Network Coupler Weapon Small Laser Energy Gun Small Laser Ballistic Gun Light Assault Rifle Build | -11 -10 ------- Run | Scr Mat Slots Evolved . | . . Power . | . . Propulsion . | . . Utility . | . . Weapon . | . . Parts Attached 14 | 10 4 Power 2 | 2 . Engine 2 | 2 . Core . | . . Reactor . | . . Propulsion 5 | 5 . Treads . | . . Leg 4 | 4 . Wheel 1 | 1 . Hover . | . . Flight . | . . Utility 2 | . 2 Device . | . . Storage 1 | . 1 Processor 1 | . 1 Hackware . | . . Protection . | . . Artifact . | . . Weapon 5 | 3 2 Energy Gun 4 | 3 1 Energy Cannon . | . . Ballistic Gun 1 | . 1 Ballistic Cannon . | . . Launcher . | . . Special Weapon . | . . Impact Weapon . | . . Slashing Weapon . | . . Piercing Weapon . | . . Special Melee Weapon . | . . Unidentified Prototypes . | . . Parts Lost 7 | . 7 Power 1 | . 1 Propulsion 2 | . 2 Utility . | . . Weapon 4 | . 4 Highest Loss Streak 5 | . 5 Average Slot Usage (%) 71 | . 71 Engine 12 | . 12 Leg 23 | . 23 Storage 5 | . 5 Processor 7 | . 7 Energy Gun 14 | . 14 Ballistic Gun 6 | . 6 Naked Turns . | . . Heaviest Build 13 | 6 13 Greatest Support 20 | 20 20 Greatest Overweight (x) 2 | . 2 Average Overweight (x) . | . . Largest Inventory Capacity 8 | 4 8 Average Capacity 4 | 4 5 Most Carried 4 | 4 4 Average Carried 1 | 1 1 Final Capacity 8 | 4 8 Final Carried 2 | 1 2 Class Distribution -------------------- 100% | Mutant Dominant Class ---------------- Mutant | -10/Materials Resources | -11 -10 ----------- Run | Scr Mat Matter Collected 347 | 300 47 Remotely . | . . Salvage Created 251 | 50 201 Parts 14 | 1 13 Haulers Intercepted 1 | . 1 Recyclers Shooed . | . . Parts Field Recycled . | . . Retrieved Matter . | . . Parts Self-Destructed . | . . Prevented . | . . Kills | -11 -10 ------- Run | Scr Mat Combat Hostiles Destroyed 4 | 1 3 Guns 3 | 1 2 AOE 1 | . 1 Classes Destroyed 3 | 1 2 Hauler 1 | . 1 Watcher 2 | . 2 Grunt 4 | 1 3 Best Kill Streak 4 | 1 4 Combat Bots Only 2 | 1 2 Max Kills in Single Turn 1 | 1 1 Gunslinging . | . . Exploded 1 | . 1 Melee . | . . Uniques/NPCs Destroyed . | . . Combat | -11 -10 -------- Run | Scr Mat Damage Taken 698 | 75 623 Core 252 | 20 232 Absorbed by Shields . | . . Core Remaining (%) 92 | 92 . Volleys Fired 34 | 3 31 Largest 2 | 2 2 Hottest 80 | 80 80 Shots Fired 51 | 6 45 Gun 51 | 6 45 Cannon . | . . Launcher . | . . Special . | . . Kinetic 22 | . 22 Thermal 17 | 3 14 Explosive . | . . Electromagnetic 12 | 3 9 Robot Hit Streak 13 | 3 13 Robot Miss Streak 4 | 1 4 Penetration Max . | . . Secondary Targets 1 | . 1 Max Gunslinging Chain 1 | . 1 Shots Hit Robots 34 | 3 31 Core Hits 18 | 2 16 Critical Hits . | . . Critical Kills . | . . Critical Parts Destroyed . | . . Melee Attacks . | . . Impact . | . . Slashing . | . . Piercing . | . . Sneak Attacks . | . . Combat Hostiles . | . . Follow-up Attacks . | . . Damage Inflicted 475 | 38 437 Guns 343 | 38 305 Cannons . | . . Explosions 129 | . 129 Melee . | . . Ramming 3 | . 3 Kinetic 105 | . 105 Thermal 214 | 10 204 Explosive . | . . Electromagnetic 153 | 28 125 Impact . | . . Slashing . | . . Piercing . | . . Highest Corruption 1 | . 1 Average Corruption 1 | . 1 Corruption Purged . | . . Effects 1 | . 1 Targeting Errors 1 | . 1 Overload Shots . | . . Overflow Damage 21 | . 21 Projectiles . | . . Explosions 21 | . 21 Melee . | . . Knockbacks . | . . Impact . | . . Kinetic . | . . Secondary . | . . Self-Inflicted Damage 78 | . 78 Shots 3 | . 3 Rammed 1 | . 1 Targets Rammed 1 | . 1 Kicked . | . . Crushed . | . . Highest Temperature 178 | 48 178 Average Temperature 51 | 22 56 Received Heat Transfer 342 | 42 300 Siege Activations . | . . Robots Corrupted . | . . Combat Hostiles . | . . Parts Fried . | . . Impact Corruptions . | . . Robots Melted . | . . Combat Hostiles . | . . Parts Melted . | . . Heat Transferred 350 | 25 325 Parts Sabotaged . | . . Parts Stolen . | . . Parts Stripped . | . . Power Chain Reactions 3 | . 3 Missiles Intercepted . | . . Alert | -11 -10 ------- Run | Scr Mat Peak Influence 71 | 20 71 Initial . | . . Average 1 | . 29 Maximum Alert Level . | . . Low Security (%) 100 | 100 100 Level 1 . | . . Level 2 . | . . Level 3 . | . . Level 4 . | . . Level 5 . | . . High Security . | . . Max Security . | . . Squads Dispatched 1 | . 1 Investigation 1 | . 1 Extermination . | . . Reinforcement . | . . Assault . | . . Garrison . | . . Intercept . | . . Construction Impeded . | . . Haulers Reinforced . | . . Stealth | -11 -10 --------- Run | Scr Mat Distress Signals . | . . Communications Jammed . | . . Distress Signals . | . . Times Spotted 11 | 1 10 Peak Tracking Total 5 | 1 5 Tactical Retreats . | . . Traps | -11 -10 ------- Run | Scr Mat Traps Triggered . | . . Indirectly . | . . Trap Hack Attempts . | . . Triggered . | . . Disarmed . | . . Reprogrammed . | . . Reused . | . . Traps Extracted . | . . Installed . | . . Triggered . | . . Machines | -11 -10 ---------- Run | Scr Mat Machines Disabled . | . . Max in Single Turn . | . . Machines Sabotaged . | . . Garrisons Compromised . | . . Overloaded Fab Kills . | . . Fab Network Shutdowns . | . . Hacking | -11 -10 --------- Run | Scr Mat Machines Accessed 1 | . 1 Terminals 1 | . 1 Fabricators . | . . Repair Stations . | . . Recycling Units . | . . Scanalyzers . | . . Garrison Access . | . . Total Hacks 8 | . 8 Successful 7 | . 7 Failed 1 | . 1 Catastrophic . | . . Database Lockouts . | . . Manual . | . . Terminals 8 | . 8 Fabricators . | . . Repair Stations . | . . Recycling Units . | . . Scanalyzers . | . . Garrison Access . | . . Terminal Hacks 7 | . 7 Record 3 | . 3 Robot Analysis 1 | . 1 Alert Level 3 | . 3 Fabricator Hacks . | . . Repair Station Hacks . | . . Recycling Unit Hacks . | . . Scanalyzer . | . . Garrison Access Hacks . | . . Unauthorized Hacks . | . . Terminals . | . . Fabricators . | . . Repair Stations . | . . Recycling Units . | . . Scanalyzers . | . . Garrison Access . | . . Data Cores Recovered . | . . Used . | . . Hacking Detections 1 | . 1 Full Trace Events 1 | . 1 Feedback Events . | . . Feedback Blocked . | . . Robot Schematics Acquired . | . . Robots Built . | . . Matter . | . . Time . | . . Total Robot Build Rating . | . . Part Schematics Acquired . | . . Parts Built . | . . Matter . | . . Time . | . . Total Part Build Rating . | . . Parts Repaired . | . . Time . | . . Parts Recycled . | . . Recycled Matter . | . . Retrieved Matter . | . . Retrieved Components . | . . Parts Scanalyzed . | . . Part Schematics Acquired . | . . Parts Damaged . | . . Bothacking | -11 -10 ------------ Run | Scr Mat Used RIF Installer . | . . Robots Hacked . | . . Non-combat . | . . Combat . | . . Robot Hacks Applied . | . . Relay Couplers Released . | . . Robots Rewired . | . . Allies Hacked . | . . Hacks Repelled . | . . Allies | -11 -10 -------- Run | Scr Mat Total Allies . | . . Largest Group . | . . Highest-Rated Group . | . . Highest-Rated Ally . | . . Total Orders . | . . Ally Attacks . | . . Total Damage . | . . Kills . | . . Allies Corrupted . | . . Allies Melted . | . . Intel | -11 -10 ------- Run | Scr Mat Robot Analysis Total 1 | . 1 Derelict Logs Recovered . | . . Drone Launches . | . . Drone Recoveries . | . . Exploration | -11 -10 ------------- Run | Scr Mat Turns Passed 11377 | 11069 308 Spaces Moved 2643 | 2462 181 Core 57 | 34 23 Treads . | . . Legs 2586 | 2428 158 Wheels . | . . Hover . | . . Flight . | . . Fastest Speed 50 | 50 120 Average Speed 119 | 119 123 Slowest Speed 150 | 120 150 Overloaded Moves . | . . Propulsion Burnouts . | . . Robots Hopped . | . . Cave-ins Triggered . | . . Exploration Rate (%) 64 | 114 14 Regions Visited 1 Branch Regions . Pre-discovered Areas . | . . Known Exits Taken . | . . Unknown Exits Taken 1 | 1 . Scrap Searched . | . . Spaces Dug . | . . Terrain Destroyed 9 | . 9 Melee . | . . Projectile . | . . AOE 9 | . 9 Terrain Rammed . | . . Walls Destroyed . | . . Machines Disabled . | . . Actions | -11 -10 --------- Run | Scr Mat Total 10821 | 10597 224 Wait 8110 | 8107 3 Move 2642 | 2461 181 Hop . | . . Pick Up 13 | 9 4 Fast Attach 1 | . 1 Attach 12 | 9 3 Detach 4 | 4 . Swap 1 | 1 . Drop 3 | 3 . Fire 34 | 3 31 Melee . | . . Ram . | . . Kick 1 | . 1 Crush . | . . Escape Stasis . | . . Rewire . | . . Trap . | . . Miscellaneous . | . . Route ------- -11/Scrapyard -10/Materials (discovered 1 exit: [*Min]) History --------- Turn | Location | Event 2 | -11/Scrapyard | Met Revision 17 102 | -11/Scrapyard | Discovered new exit (range 8) 11070 | -11/Scrapyard | Entered Materials 11071 | -10/Materials | Build established: Mutant 11084 | -10/Materials | Discovered new exit (range 15) 11343 | -10/Materials | Core integrity fell below 50% 11356 | -10/Materials | Core integrity fell below 20% 11378 | -10/Materials | Lost 5 parts (1p2n2w) 11378 | -10/Materials | Destroyed by G-34 Mercenary with Small Laser Last Messages --------------- 11312_ Acquired 2 matter. 11320_ Acquired 22 matter. 11321_ U-05 Engineer lays Concrete. 11328_ G-34 Mercenary destroyed. 11328_ Aluminum Leg destroyed. 11330_ System corrupted: Lgt. Assault Rifle targeting data glitched. 11330_ Aluminum Leg destroyed. 11333_ Lgt. Ion Engine destroyed. Overweight warning: You are carrying more than your current propulsion can efficiently support, which slows movement; see status page ('s') or the top of the parts list for the specific mass vs. support values. 11346_ R-06 Scavenger collects Heat Sink. 11347_ Lgt. Assault Rifle destroyed. 11347_ Acquired 1 matter. 11352_ U-05 Engineer lays Concrete. 11355_ G-34 Mercenary destroyed. 11356_ R-06 Scavenger collects Aluminum Leg. 11360_ R-06 Scavenger collects Ion Engine. 11363_ R-06 Scavenger collects Heat Sink. [Achievement: First Step to Greatness] Map ----- +----------------------------------------------------+ | ??????????????????????????????????# #??????????? | | ??????????????????????????????????# #??????????? | | ??????????????????????????????????# #??????????? | | ??????????????????????????????????# #??????????? | | ??????????????????????????????????# #??????????? | | ??????????????????????????????????# #??????????? | | ??????????????????????????????????# #??????????? | | ??????????????????????##########??# #??????????? | | ??????????????????????# ####### #####??????? | | ??????????????????????# #??????? | | ??????????????????????# %= #??????? | | ??????????????????????# %% #??????? | | ??????????????????????# ########+########????? | | ??????????????????????## #### #????? | | ???????????????????????# ug##?# #????? | | ???????????????????????# ##?# """"" #????? | | ???????????????????????# #??# """"""""" #????? | | ???????????????????????# #??# """ """ #????? | | ???????????????????????# %#??# #????? | | ???????????????????????# ##################????? | | ???????????????????????# # #??????????????? | | ???????????????????????# # #??????????????? | | ???????????????????????# # " #??????????????? | | ???????????????????????# + T #??????????????? | | ???????????????????????# # " #??????????????? | | ???????????????????????# @ # #??????????????? | | ???????????????????????# ########??????????????? | | ???????????????????????##u##?????????????????????? | | ????????????????????????# #??????????????????????? | | ????????????????????????# #??????????????????????? | | ????????????????????????# #??????????????????????? | | ????????????????????????# #??????????????????????? | | ????????????????????????# #??????????????????????? | | ????????????????????????# #??????????????????????? | | ????????????????????????# #??????????????????????? | | ????????????????????????# #??????????????????????? | | ?????????????????????????k???????????????????????? | | ????????????????????????? ???????????????????????? | | ????????????????????????? ???????????????????????? | | ????????????????????????? ???????????????????????? | | ?????????????????????????k???????????????????????? | | ?????????????????????????????????????????????????? | | ?????????????????????????????????????????????????? | | ?????????????????????????a???????????????????????? | | ?????????????????????????????????????????????????? | | ?????????????????????????????????????????????????? | | ?????????????????????????????????????????????????? | | ?????????????????????????????????????????????????? | | ?????????????????????????????????????????????????? | | ?????????????????????????????????????????????????? | +----------------------------------------------------+ Best States ------------- Heat Dissipation 25 Energy Generation 10 Energy Capacity 125 Matter Stores 300 Matter Capacity 300 Sight Range 16 Terrain Scan Density 10 Evasion (%) 50 Item Schematics ----------------- None Robot Schematics ------------------ None Fabricated ------------ Nothing Alien Tech Used ----------------- None Achievements -------------- Crack Shot First Step to Greatness Loot Pinata One Hack Too Far Challenges ------------ None Game ------ Seed HackingLauncherHammer Manual? 0 Play Time 00:58:06 Cumulative 1.9 hours Start 2021.05.09 @ 02:00:34 End 2021.05.09 @ 03:29:58 Sessions 1 Manual Loads 0 Difficulty Rogue Special Mode None Game No. 1 Rogue 1 Adventurer 0 Explorer 0 Win Type - Total 0 Types 0/0/0/0/0/0/0/0/0 Lore% 0 Gallery% 0 Achievement% 1 Wizard Run 0 Options --------- ASCII 0 Keyboard 0 Movement Numpad Keybinds 0 Fullscreen 1 Font 12/Smallcaps Map View 83x54 Tactical HUD 1 Map Filters NONE Filters NONE Steam 1 RUN: ff87ec81-469e-4f65-9d74-20110c2f1c63